bitfinex/quotes_ETHUSD_20251215
["timestamp","ask_amount","ask_price","bid_price","bid_amount"]
[1765833490637,3.40882201,2933.6,2933.3,0.6689]
[1765833490931,3.40882201,2933.6,2932.7,0.4979]
[1765833490932,0.001,2933.6,2932.7,0.4979]
[1765833491506,0.001,2933.6,2932.8,6.8194217]
[1765833491912,0.001,2933.6,2932.9,0.4979]
[1765833492121,0.001,2933.6,2933.5,0.6689]
[1765833492637,0.001,2933.6,2933.5,1.1668]
[1765833492931,0.001,2933.6,2933.5,0.6689]
[1765833493135,0.001,2933.6,2933.5,1.1668]
[1765833493606,0.001,2933.6,2933.5,4.57569722]
[1765833494127,0.001,2933.6,2933.5,5.3741759]
[1765833496438,0.001,2933.6,2933.5,5.95465119]
[1765833498744,0.001,2934.1,2933.5,16.21543182]
[1765833498947,0.001,2934.3,2934.0,0.4697]
[1765833499116,0.001,2934.3,2933.6,10.33525577]
[1765833499117,0.001,2934.3,2934.2,0.6689]
[1765833499512,0.001,2934.3,2934.2,1.1668]
[1765833499724,0.001,2934.3,2934.2,1.37196083]
[1765833500026,0.001,2934.3,2934.2,4.74596397]
[1765833500411,0.001,2934.3,2933.8,0.4979]
[1765833500616,0.001,2934.3,2934.2,4.07698397]
[1765833501037,0.001,2934.3,2934.2,5.15535926]
[1765833502346,0.001,2934.3,2934.2,5.18944009]
[1765833502543,0.001,2934.3,2934.2,5.56086326]
[1765833502750,0.001,2934.3,2934.2,7.43785731]
[1765833503147,0.6708,2936.0,2934.7,0.4697]
[1765833503445,0.4762,2935.9,2934.8,1.0419]
[1765833503946,0.455504,2935.8,2934.6,0.544]
[1765833504139,6.8126852,2935.7,2934.7,3.40750332]
[1765833504451,0.72681892,2935.6,2934.7,3.40750332]
[1765833504653,1.20301892,2935.6,2934.7,3.40750332]
[1765833504824,0.4762,2935.5,2934.7,3.40750332]
[1765833505956,0.6164,2934.8,2934.3,3.40794794]
[1765833506165,3.40662259,2935.5,2934.4,7.31360338]
[1765833506325,0.77507529,2936.0,2935.4,0.4697]
[1765833506524,4.1811045,2936.0,2935.4,0.4697]
[1765833507032,0.58047529,2935.9,2935.4,0.4697]
[1765833507234,3.60061157,2936.0,2935.4,0.4697]
[1765833507420,0.001,2935.9,2935.5,0.53196574]
[1765833507622,0.001,2935.9,2935.5,0.4979]
[1765833507815,0.001,2935.9,2935.8,0.4697]
[1765833508020,0.001,2935.9,2935.8,1.0137]
[1765833508241,0.001,2935.9,2935.8,5.53236413]
[1765833508445,0.001,2937.1,2935.9,0.98597929]
[1765833508628,0.001,2937.1,2935.9,1.48387929]
[1765833508841,0.001,2937.1,2936.1,0.405504]
[1765833509027,0.001,2937.1,2937.0,0.4697]
[1765833509751,0.001,2937.1,2936.6,0.4979]
[1765833510561,0.001,2937.1,2937.0,0.4697]
[1765833510926,0.001,2937.1,2937.0,0.9351]
[1765833511153,0.001,2937.1,2934.3,0.07844609]
[1765833511154,0.9051,2937.1,2936.3,0.4654]
[1765833512059,0.001,2937.1,2936.6,3.40527559]
[1765833512420,0.001,2937.1,2936.7,0.4703]
[1765833512839,0.001,2937.1,2937.0,0.4968]
[1765833513041,0.001,2937.1,2936.6,3.87556231]
[1765833513447,0.001,2937.1,2936.7,3.87547831]
[1765833513839,0.001,2937.1,2936.7,3.40517831]
[1765833514036,0.001,2937.1,2937.0,0.4968]
[1765833514452,0.001,2937.1,2937.0,0.9671]
[1765833514758,0.001,2937.1,2937.0,0.4968]
[1765833514961,0.001,2937.1,2936.6,4.41956977]
[1765833515161,0.001,2937.1,2936.7,0.4703]
[1765833515359,0.001,2937.1,2937.0,0.4968]
[1765833515658,0.001,2937.1,2936.2,0.5497]
[1765833515659,0.4981,2937.1,2936.2,0.5497]
[1765833515858,0.4981,2937.1,2936.3,3.87592542]
[1765833516155,0.4981,2937.1,2936.4,3.4055234]
[1765833516549,3.40483486,2937.0,2936.2,0.0794]
[1765833516759,0.39029349,2936.9,2936.2,3.48515]
[1765833517069,0.58649349,2936.9,2936.2,3.48515]
[1765833517428,1.08359349,2936.9,2936.2,0.0794]
[1765833517760,1.08359349,2936.9,2935.8,3.40617788]
[1765833518058,0.455504,2936.7,2935.3,0.6695]
[1765833518276,0.79432632,2936.8,2936.2,3.40571498]
[1765833518440,0.001,2937.1,2936.7,0.5895]
[1765833518643,0.4981,2937.1,2936.5,3.40533408]
[1765833519059,0.4981,2937.1,2936.6,3.4052889]
[1765833519262,0.39027726,2937.0,2936.6,3.4052889]
[1765833519462,0.39027726,2937.0,2936.5,3.40538114]
[1765833519876,0.39027726,2937.0,2936.6,3.40523396]
[1765833520671,0.001,2937.1,2936.6,3.40523396]
[1765833520672,3.4057252,2937.1,2936.6,3.40523396]
[1765833520842,3.9028252,2937.1,2936.5,3.4053651]
[1765833521856,3.4057252,2937.1,2936.4,3.4054619]
[1765833522062,0.4971,2937.0,2936.4,3.4054619]
[1765833522272,0.4971,2937.0,2936.3,3.40557884]
[1765833522441,0.4971,2937.0,2936.1,0.0927]
[1765833522442,0.58648252,2936.9,2936.1,0.0927]
[1765833522771,3.40506673,2936.8,2936.2,3.40568008]
[1765833522970,4.48855832,2936.9,2936.2,3.40568008]
[1765833523542,1.08358252,2936.9,2936.2,3.40568008]
[1765833523738,1.08358252,2936.9,2936.2,6.81144263]
[1765833523938,0.50314887,2936.8,2936.2,6.81144263]
[1765833524371,0.58748252,2936.9,2936.2,6.81144263]
[1765833524752,0.39128252,2936.9,2936.2,7.28174263]
[1765833524963,0.001,2936.9,2936.2,7.28174263]
[1765833525253,0.001,2936.9,2935.6,0.4703]
[1765833525254,0.4029,2936.3,2935.6,0.4703]
[1765833525458,0.4029,2936.3,2936.1,3.40586789]
[1765833525769,0.4029,2936.3,2935.8,3.40618241]
[1765833526147,0.899,2936.3,2935.9,3.40609534]
[1765833526343,0.4029,2936.3,2936.0,3.40593206]
[1765833526976,0.4029,2936.3,2935.7,6.8126852]
[1765833527479,3.80855735,2936.3,2935.7,3.4063426]
[1765833527663,0.7214095,2936.2,2935.3,4.07630079]
[1765833527864,0.7214095,2936.2,2935.3,3.60600079]
[1765833527865,1.2175095,2936.2,2935.3,3.60600079]
[1765833528171,0.5471,2936.1,2935.2,3.40690996]
[1765833528479,0.543,2936.0,2935.0,3.40706985]
[1765833528968,0.3979,2935.1,2934.8,3.40736547]
[1765833529149,0.2002,2934.9,2934.2,3.40803592]
[1765833529346,0.2002,2934.9,2934.2,3.4080378]
[1765833529347,0.384,2934.8,2934.2,3.4080378]
[1765833529550,0.384,2934.8,2934.1,0.1192]
[1765833529551,0.8811,2934.8,2934.1,3.40818797]
[1765833529916,0.8811,2934.8,2934.0,0.002]
[1765833530085,0.4904,2934.1,2934.0,0.002]
[1765833530581,0.8849,2934.1,2934.0,0.002]
[1765833530959,4.29310012,2934.1,2934.0,0.002]
[1765833531160,5.06321843,2934.1,2934.0,0.002]
[1765833531489,5.06321843,2934.1,2933.0,0.002]
[1765833531490,0.405504,2933.8,2933.0,0.002]
[1765833531663,0.405504,2933.6,2933.0,3.41147834]
[1765833531980,0.405504,2933.6,2933.0,0.002]
[1765833532150,0.4971,2933.5,2933.0,3.41141416]
[1765833533782,0.4971,2933.5,2933.0,0.002]
[1765833533981,0.43114011,2933.4,2933.0,0.002]
[1765833534183,0.3879,2933.1,2933.0,0.002]
[1765833534783,0.8839,2933.1,2933.0,0.002]
[1765833535085,0.544,2933.2,2933.0,0.002]
[1765833535259,0.8839,2933.1,2933.0,0.002]
[1765833536380,1.36761438,2933.1,2933.0,0.002]
[1765833537082,0.87161438,2933.1,2933.0,0.002]
[1765833537412,1.47114011,2933.4,2933.0,0.002]
[1765833538651,4.88015396,2933.4,2933.0,0.002]
[1765833538853,0.3879,2933.1,2933.0,0.002]
[1765833539050,0.8839,2933.1,2933.0,0.002]
[1765833540484,0.05,2932.7,2932.4,0.002]
[1765833540684,0.0087,2932.5,2932.4,0.002]
[1765833540855,0.911304,2932.5,2932.4,0.002]
[1765833541181,0.1962,2932.9,2932.4,3.41217596]
[1765833541385,0.4971,2932.8,2932.4,0.002]
[1765833541688,0.3879,2932.5,2932.4,0.002]
[1765833542459,0.8655,2932.5,2932.4,0.002]
[1765833542809,0.544,2932.6,2932.4,0.002]
[1765833542984,0.8847,2932.5,2932.4,0.002]
[1765833544380,0.544,2932.6,2932.4,0.002]
[1765833545995,0.4072,2932.5,2932.4,0.002]
[1765833546775,4.29415967,2932.5,2932.4,0.002]
[1765833547708,0.405504,2932.1,2931.9,0.002]
[1765833548005,0.5488,2932.0,2931.9,0.002]
[1765833548158,1.0264,2932.0,2931.9,0.002]
[1765833548793,4.4370412,2932.0,2931.9,0.002]
[1765833548991,5.26734909,2932.0,2931.9,0.002]
[1765833549796,1.85670789,2932.0,2931.9,0.002]
[1765833549994,0.5488,2932.0,2931.9,0.002]
[1765833550294,0.544,2932.3,2931.9,0.4686]
[1765833550462,0.544,2932.6,2931.9,0.9215]
[1765833551692,0.544,2932.6,2932.0,6.8212824]
[1765833551882,0.544,2932.6,2932.0,3.4106412]
[1765833552062,0.544,2932.6,2931.9,6.82349042]
[1765833552268,0.544,2932.6,2931.9,8.00442946]
[1765833552464,0.6738,2932.9,2932.0,0.4529]
[1765833552670,1.2178,2932.9,2932.0,0.4529]
[1765833552882,1.2178,2932.9,2932.1,0.1805]
[1765833553178,7.55951144,2932.9,2932.1,0.1805]
[1765833553387,0.4776,2932.8,2932.1,0.1805]
[1765833553782,3.88733399,2932.8,2932.2,3.41040856]
[1765833554269,0.4776,2932.8,2932.2,6.82081712]
[1765833554676,1.04915526,2936.0,2932.7,0.4666]
[1765833554677,0.1943,2933.6,2932.7,0.4666]
[1765833554984,0.7383,2933.6,2932.8,0.5006971]
[1765833555186,0.05,2934.2,2933.5,0.6471]
[1765833555387,4.00213912,2934.2,2933.6,0.4666]
[1765833555699,4.00213912,2934.2,2933.7,3.40866482]
[1765833555700,0.544,2934.2,2933.7,3.40866482]
[1765833555995,3.95209394,2934.2,2933.6,0.4666]
[1765833556164,3.95209394,2934.2,2933.6,3.8753768]
[1765833556465,0.6537,2933.7,2932.9,0.1805]
[1765833556665,0.0043,2933.6,2932.9,0.1805]
[1765833556893,0.0043,2933.6,2933.3,3.40908263]
[1765833557098,0.0043,2933.6,2933.5,3.40889722]
[1765833557279,0.405504,2934.1,2933.6,3.40878101]
[1765833557597,0.56291647,2934.1,2933.6,3.40878101]
[1765833557767,3.9521056,2934.2,2933.6,3.40878101]
[1765833558098,3.9531056,2934.2,2933.6,3.40878101]
[1765833559478,3.4091056,2934.2,2933.6,3.40878101]
[1765833560182,0.001,2934.2,2933.4,6.81802686]
[1765833561075,0.4786,2934.2,2933.4,3.40901343]
[1765833561399,0.50610947,2934.1,2933.4,3.40901343]
[1765833561595,0.50610947,2934.1,2933.4,6.81802686]
[1765833561771,0.98370947,2934.1,2933.4,3.40901343]
[1765833562200,0.98370947,2934.1,2933.2,6.81849174]
[1765833562500,0.001,2934.2,2933.2,10.68063761]
[1765833562701,0.001,2934.2,2933.3,0.4529]
[1765833563381,3.40915833,2934.2,2933.3,0.4529]
[1765833563785,0.4776,2934.1,2933.2,6.81849174]
[1765833563970,0.72949167,2934.0,2933.3,0.4529]
[1765833564316,0.001,2934.2,2933.4,6.81802686]
[1765833564807,0.001,2934.2,2933.5,0.4529]
[1765833566282,0.4776,2934.1,2933.4,3.40901343]
[1765833566483,0.4776,2934.1,2933.5,3.40886999]
[1765833567313,0.4776,2934.1,2933.5,6.81776721]
[1765833567610,0.001,2934.2,2933.5,7.49954393]
[1765833567766,0.001,2934.2,2933.6,0.4529]
[1765833568473,0.001,2934.2,2933.7,6.81732964]
[1765833568667,0.001,2934.2,2934.1,0.6471]
[1765833569091,0.001,2934.2,2934.1,0.4666]
[1765833569687,0.001,2934.2,2933.9,0.1805]
[1765833570311,0.001,2934.2,2933.7,7.27022964]
[1765833570470,0.001,2934.2,2933.9,6.81686492]
[1765833571522,0.001,2934.2,2933.8,3.40850337]
[1765833571523,0.4622,2934.0,2933.8,3.40850337]
[1765833571820,0.545,2934.2,2933.8,3.40850337]
[1765833571973,0.001,2934.2,2934.1,0.4608]
[1765833572706,0.001,2934.2,2934.1,4.32200012]
[1765833572871,0.001,2934.2,2934.1,6.03526756]
[1765833573076,0.001,2934.2,2934.1,3.86900012]
[1765833573282,0.001,2934.2,2934.1,4.32200012]
[1765833573684,0.001,2934.2,2934.1,3.86900012]
[1765833574897,0.001,2934.2,2934.1,4.35608212]
[1765833575072,0.001,2934.2,2934.1,4.32200012]
[1765833575273,0.474,2934.2,2933.3,0.1887]
[1765833575508,0.0041,2934.1,2933.6,3.40876777]
[1765833575800,0.0041,2934.1,2933.5,3.40889525]
[1765833576204,0.001,2934.2,2933.7,3.40866419]
[1765833576377,0.001,2934.2,2933.5,0.453]
[1765833576777,0.001,2934.2,2933.8,3.40848924]
[1765833577000,0.001,2934.2,2933.6,3.40870381]
[1765833577001,0.001,2934.2,2933.7,3.40866287]
[1765833577303,0.001,2934.2,2933.7,6.81732769]
[1765833577602,0.001,2934.2,2933.7,7.27032769]
[1765833577805,0.001,2934.2,2934.1,0.4608]
[1765833579002,0.001,2934.2,2934.1,3.86900012]
[1765833579505,0.001,2934.2,2934.0,3.40827764]
[1765833579908,0.001,2934.2,2934.1,3.40820012]
[1765833580106,0.001,2934.2,2934.1,3.86900012]
[1765833580309,0.001,2934.2,2934.1,4.35608212]
[1765833580505,0.001,2934.2,2934.1,5.09843987]
[1765833584010,0.001,2934.2,2934.1,6.22291516]
[1765833584200,0.001,2934.8,2934.2,0.58047529]
[1765833584399,0.001,2934.8,2934.7,0.4608]
[1765833584710,0.001,2934.8,2934.7,1.0048]
[1765833584909,0.001,2934.8,2934.7,1.4578]
[1765833585109,0.001,2934.8,2934.7,5.44577861]
[1765833585314,0.001,2934.8,2934.7,6.33111755]
[1765833585488,0.001,2934.8,2934.7,5.41731755]
[1765833585689,0.001,2934.8,2934.7,6.33111755]
[1765833586093,0.001,2934.8,2934.7,5.87811755]
[1765833586294,0.001,2934.8,2934.7,6.33111755]
[1765833587389,0.001,2934.8,2934.7,5.78711755]
[1765833587598,0.001,2934.8,2934.7,6.33111755]
[1765833588091,0.001,2935.4,2934.7,6.33111755]
[1765833588092,0.001,2935.4,2934.8,0.58047529]
[1765833588394,0.001,2935.4,2935.3,0.6439]
[1765833588601,0.001,2936.0,2935.3,1.1879]
[1765833588805,0.001,2936.0,2935.4,0.453]
[1765833589214,0.001,2936.0,2935.9,3.86691056]
[1765833589416,0.001,2936.0,2935.8,3.4061817]
[1765833589965,0.001,2936.0,2935.4,0.997]
[1765833590218,0.001,2936.0,2935.4,0.453]
[1765833590734,0.001,2936.0,2935.3,0.1831]
[1765833591027,0.001,2936.0,2935.9,3.86691056]
[1765833591195,0.001,2936.0,2935.9,4.25360162]
[1765833591398,0.199,2937.5,2936.5,0.6031]
[1765833591754,0.199,2937.5,2936.9,0.4608]
[1765833592236,0.544,2937.7,2937.0,0.453]
[1765833592615,11.40047983,2937.6,2936.6,0.453]
[1765833592820,0.001,2937.2,2936.6,0.997]
[1765833593323,0.001,2937.2,2936.5,0.1423]
[1765833593324,0.001,2937.2,2936.5,3.54766563]
[1765833593520,0.001,2937.2,2936.5,7.26378023]
[1765833593918,0.462,2937.2,2936.5,3.40536563]
[1765833594331,0.462,2937.2,2936.5,6.81078023]
[1765833594904,0.462,2937.2,2936.4,3.40551896]
[1765833595133,0.462,2937.2,2936.2,0.1913]
[1765833595334,0.462,2937.2,2936.2,3.4057219]
[1765833595335,3.40483486,2937.0,2936.2,3.4057219]
[1765833595637,0.39488349,2936.9,2936.2,3.4057219]
[1765833595819,0.39488349,2936.9,2935.7,3.40629879]
[1765833595820,0.473,2936.3,2935.9,3.40608459]
[1765833596014,0.473,2936.3,2936.0,3.40597642]
[1765833596333,0.473,2936.3,2935.9,3.40606953]
[1765833596834,0.473,2936.3,2935.9,3.40606612]
[1765833597035,0.8748,2936.3,2935.8,3.40617898]
[1765833597337,0.8748,2936.3,2935.7,7.39316049]
[1765833597633,0.473,2936.3,2935.7,3.4063426]
[1765833597827,0.38785422,2936.2,2935.7,6.8126852]
[1765833598023,0.473,2936.3,2935.7,6.8126852]
[1765833598206,3.40554427,2936.4,2935.7,3.4063426]
[1765833598404,3.40554427,2936.4,2935.7,6.8126852]
[1765833598603,4.35126165,2936.5,2935.7,6.8126852]
[1765833599521,4.35126165,2936.5,2935.7,3.4063426]
[1765833599712,0.78065766,2936.4,2935.7,3.4063426]
[1765833600309,0.511,2936.3,2935.4,0.002]
[1765833601242,0.4137,2935.5,2935.4,0.002]
[1765833601443,0.6127,2935.5,2935.4,0.002]
[1765833601740,0.543,2935.8,2935.4,0.002]
[1765833601741,0.05,2936.3,2935.4,0.9158]
[1765833601944,3.94886171,2936.2,2935.6,0.4803]
[1765833602147,0.543,2936.2,2935.6,0.4803]
[1765833602949,0.98396664,2936.2,2935.6,0.4803]
[1765833603115,0.4688,2936.1,2935.4,0.002]
[1765833603640,3.40599455,2936.0,2935.4,0.002]
[1765833603842,0.98396664,2936.2,2935.4,0.002]
[1765833604042,0.98396664,2936.2,2935.5,0.455]
[1765833604345,0.543,2936.2,2935.5,0.455]
[1765833604539,0.4677,2936.1,2935.4,0.002]
[1765833605041,3.94884453,2936.2,2935.4,0.002]
[1765833605214,3.94884453,2936.2,2935.4,0.457]
[1765833605955,0.17805886,2937.3,2936.1,0.5903]
[1765833606154,3.87335941,2937.2,2936.5,0.4803]
[1765833606745,3.40489646,2937.0,2936.5,0.4803]
[1765833607151,3.40496915,2936.9,2936.5,0.4803]
[1765833607350,3.40488784,2937.0,2936.5,0.4803]
[1765833608256,0.1832,2936.9,2936.3,3.40558223]
[1765833608558,1.04917529,2937.2,2936.5,3.8857146]
[1765833608850,1.04917529,2937.2,2935.7,0.455]
[1765833608851,0.4383,2936.3,2935.7,0.455]
[1765833609173,0.4383,2936.3,2935.7,3.40627355]
[1765833609340,0.4383,2936.3,2935.7,6.81261615]
[1765833609737,0.593,2936.8,2935.7,6.81261615]
[1765833609738,0.543,2936.8,2936.2,0.5801]
[1765833610254,0.543,2936.8,2936.2,1.0351]
[1765833610454,0.58047529,2936.7,2935.8,4.05761649]
[1765833610657,0.58047529,2936.7,2936.2,3.40573106]
[1765833611036,0.58047529,2936.7,2936.1,3.40579854]
[1765833611437,0.58047529,2936.7,2936.1,3.86079854]
[1765833611833,0.58047529,2936.7,2936.2,3.40575936]
[1765833612032,4.4158435,2936.8,2936.5,0.4803]
[1765833612033,0.543,2936.8,2936.5,0.4803]
[1765833612340,0.406504,2937.2,2936.5,3.8857146]
[1765833612341,0.001,2937.2,2936.5,3.8857146]
[1765833612566,0.4677,2937.1,2936.5,0.4803]
[1765833612729,0.001,2937.2,2936.5,0.4803]
[1765833612928,0.001,2937.2,2936.5,4.3407146]
[1765833613764,0.4687,2937.2,2936.5,3.8857146]
[1765833613968,0.4687,2937.2,2936.5,4.3407146]
[1765833615132,3.8733191,2937.2,2936.5,4.3407146]
[1765833616248,3.8733191,2937.2,2936.5,3.8857146]
[1765833616737,7.2779382,2937.2,2936.5,0.4803]
[1765833616944,0.9068,2936.6,2935.8,0.1964]
[1765833617147,0.4568,2936.6,2935.9,0.455]
[1765833617447,0.001,2936.6,2935.9,1.44123514]
[1765833617644,0.001,2936.6,2936.4,3.40552989]
[1765833618165,0.001,2936.6,2936.5,3.4054146]
[1765833618348,0.001,2936.6,2936.0,3.86097831]
[1765833618349,0.001,2936.6,2936.1,6.81175708]
[1765833620149,0.001,2936.6,2936.1,7.26675708]
[1765833620457,0.001,2936.6,2935.8,0.1964]
[1765833620458,0.4383,2936.2,2935.8,0.1964]
[1765833620661,0.4677,2936.5,2935.8,0.1964]
[1765833620832,0.4677,2936.5,2935.4,1.12547529]
[1765833621162,0.4677,2936.5,2935.5,0.45322002]
[1765833621462,0.4677,2936.5,2935.9,3.40602962]
[1765833621959,0.4677,2936.5,2935.8,3.4061773]
[1765833622156,0.6215,2935.8,2935.4,0.002]
[1765833622786,0.0047,2935.5,2935.4,0.002]
[1765833622936,0.543,2936.0,2935.4,0.457]
[1765833623139,0.98465573,2936.0,2935.4,0.9373]
[1765833623378,0.543,2936.0,2935.5,0.455]
[1765833623681,0.4677,2936.5,2935.5,0.455]
[1765833623682,0.543,2936.3,2935.5,0.455]
[1765833624033,1.0107,2936.3,2935.5,0.455]
[1765833625489,1.0107,2936.3,2935.6,6.81291728]
[1765833626075,0.543,2936.3,2935.6,7.26791728]
[1765833626369,0.001,2936.6,2935.7,0.455]
[1765833626587,0.543,2936.5,2935.7,0.455]
[1765833627582,0.543,2936.5,2936.4,0.4803]
[1765833628270,0.001,2936.6,2936.4,0.9353]
[1765833628479,0.001,2936.6,2936.5,0.4803]
[1765833628777,0.001,2936.6,2936.5,0.9353]
[1765833629671,0.001,2936.6,2936.5,4.3407146]
[1765833630562,0.001,2936.6,2936.5,6.24879359]
[1765833631142,0.001,2937.2,2936.6,0.58047529]
[1765833631344,0.001,2937.2,2937.1,0.6572]
[1765833631866,0.001,2937.2,2937.1,4.56141894]
[1765833632665,0.001,2937.8,2937.1,24.63627168]
[1765833632963,0.001,2937.8,2937.7,0.4968]
[1765833633936,0.001,2937.8,2937.7,3.90082355]
[1765833634164,0.001,2937.8,2937.7,3.40402355]
[1765833634371,0.001,2937.8,2937.7,4.36632355]
[1765833639985,0.001,2937.8,2937.6,3.40413499]
[1765833640148,0.001,2937.8,2937.7,3.40402355]
[1765833640869,0.001,2937.8,2937.7,3.90082355]
[1765833641575,0.001,2937.8,2937.7,5.14336956]
[1765833642152,0.001,2937.8,2937.7,5.17740979]
[1765833642349,0.001,2937.8,2937.7,5.14336956]
[1765833642551,3.5,2941.0,2938.9,0.5924]
[1765833642879,3.5,2941.0,2939.0,0.92400226]
[1765833642880,0.1965,2939.9,2939.0,0.92400226]
[1765833643049,0.1965,2939.9,2939.0,1.0085]
[1765833643376,0.4849,2939.8,2938.9,0.6396]
[1765833643565,0.40828762,2939.7,2938.9,0.0956]
[1765833643764,0.40828762,2939.7,2938.9,3.4982028]
[1765833644078,0.40828762,2939.7,2938.3,0.4655]
[1765833644079,0.3999,2939.0,2938.3,0.4655]
[1765833644582,0.1965,2938.9,2938.2,3.40337274]
[1765833644776,0.1965,2938.9,2938.3,3.40331834]
[1765833644994,0.6814,2938.9,2938.0,0.5611]
[1765833645280,4.0841121,2938.9,2938.1,3.40355282]
[1765833645466,4.88717172,2938.9,2938.1,3.40355282]
[1765833645848,0.001,2939.0,2938.2,0.4655]
[1765833646249,0.001,2939.0,2938.2,1.0095]
[1765833647256,0.001,2939.0,2938.3,6.8066569]
[1765833648004,0.001,2939.0,2938.3,7.2721569]
[1765833648309,0.001,2939.0,2938.3,3.86882845]
[1765833648455,0.001,2939.0,2938.9,0.4968]
[1765833649002,0.001,2939.0,2938.4,0.4655]
[1765833649705,0.001,2939.0,2938.5,6.80619362]
[1765833650181,0.001,2939.0,2938.9,0.4968]
[1765833650575,0.001,2939.0,2938.6,0.544]
[1765833650775,0.001,2939.0,2938.6,0.78156936]
[1765833650975,0.001,2939.0,2938.7,0.4655]
[1765833651707,0.001,2939.0,2938.8,3.40274942]
[1765833652303,0.001,2939.0,2938.8,6.80549884]
[1765833652910,0.001,2939.0,2938.9,0.4968]
[1765833653813,0.001,2939.0,2938.9,3.89943363]
[1765833654110,0.4009,2939.0,2938.8,3.40274876]
[1765833654284,0.4009,2939.0,2938.5,3.40309283]
[1765833654485,0.4009,2939.0,2938.6,3.40291109]
[1765833654990,0.4009,2939.0,2938.3,0.4655]
[1765833655191,0.4009,2939.0,2938.5,3.4030413]
[1765833655423,0.4009,2939.0,2938.4,3.40319251]
[1765833655585,0.4841,2938.9,2938.3,3.40329701]
[1765833655780,0.4841,2938.9,2938.2,3.40344428]
[1765833656009,3.88676407,2938.9,2938.2,3.40344428]
[1765833656311,7.28942814,2938.9,2938.0,3.40362504]
[1765833656518,0.4007,2938.3,2937.8,0.4655]
[1765833656884,6.80532814,2938.9,2938.2,0.4968]
[1765833657114,3.40266407,2938.9,2938.2,0.4968]
[1765833657555,3.88756407,2938.9,2938.2,0.4968]
[1765833657692,3.88756407,2938.9,2938.3,3.40332845]
[1765833658485,0.001,2939.0,2938.3,8.01810176]
[1765833658684,0.001,2939.0,2938.4,0.4655]
[1765833659685,0.001,2938.9,2938.4,0.4655]
[1765833659891,0.001,2938.9,2938.5,6.80619362]
[1765833660092,0.001,2938.9,2938.8,0.4968]
[1765833660487,0.001,2938.9,2938.8,0.9623]
[1765833661108,0.001,2938.9,2938.8,0.4968]
[1765833661320,0.001,2938.9,2938.4,0.543]
[1765833661321,0.4009,2938.9,2938.4,3.94615179]
[1765833661622,1.40853046,2938.9,2938.2,3.40334049]
[1765833661796,1.40853046,2938.9,2938.2,3.40344428]
[1765833661990,0.544,2938.9,2938.2,6.80688856]
[1765833662198,0.001,2938.9,2938.8,0.4858]
[1765833662617,0.001,2938.9,2938.8,0.9493]
[1765833663132,0.001,2938.9,2938.6,0.543]
[1765833663133,0.544,2940.2,2938.9,0.9493]
[1765833663346,0.544,2940.2,2939.0,1.0065]
[1765833663625,3.40225473,2940.1,2939.0,0.4635]
[1765833663828,3.88775473,2940.1,2939.1,1.1907]
[1765833664027,3.88775473,2940.1,2939.2,6.80457266]
[1765833664237,3.88775473,2940.1,2939.2,8.06759993]
[1765833664729,0.001,2940.1,2939.3,0.4635]
[1765833664900,3.40229405,2940.1,2939.3,0.4635]
[1765833665108,3.88779405,2940.1,2939.3,0.4635]
[1765833665308,0.4855,2940.0,2939.2,4.2018136]
[1765833665516,6.8035881,2940.1,2939.3,0.90210136]
[1765833665517,0.001,2940.1,2939.3,0.90210136]
[1765833665722,0.001,2940.1,2940.0,0.4858]
[1765833666112,0.001,2940.1,2940.0,4.35066054]
[1765833666327,0.001,2940.1,2940.0,4.96514943]
[1765833666533,0.001,2940.1,2940.0,4.93113583]
[1765833666719,0.001,2940.1,2940.0,6.70012082]
[1765833667098,0.001,2940.1,2940.0,5.47413583]
[1765833667504,0.001,2940.1,2940.0,3.88716054]
[1765833669302,0.001,2940.1,2940.0,4.35066054]
[1765833670617,0.001,2940.1,2940.0,3.88716054]
[1765833671737,0.001,2940.1,2940.0,4.35066054]
[1765833671934,0.001,2940.1,2940.0,4.66237378]
[1765833672228,0.001,2940.1,2940.0,5.12587378]
[1765833674723,0.001,2940.1,2940.0,3.92117414]
[1765833675038,0.001,2940.1,2940.0,3.88716054]
[1765833675239,0.001,2940.1,2940.0,3.40136054]
[1765833675533,0.4821,2940.1,2939.3,0.90210136]
[1765833675737,0.4821,2940.1,2939.7,3.40166845]
[1765833675910,0.4821,2940.1,2939.8,3.40149907]
[1765833676316,0.4821,2940.1,2939.4,3.4020275]
[1765833676317,0.6238,2939.9,2939.4,3.4020275]
[1765833676519,0.0048,2939.8,2939.4,3.4020275]
[1765833676714,0.4903,2939.8,2939.2,3.40228633]
[1765833676950,4.43489869,2939.8,2939.2,3.40228633]
[1765833677252,1.0333,2939.8,2939.2,6.80457266]
[1765833677447,0.5478,2939.8,2939.2,6.80457266]
[1765833677648,0.001,2940.1,2939.7,0.4858]
[1765833677949,0.001,2940.1,2939.8,0.4858]
[1765833678726,0.001,2940.1,2939.4,3.40195305]
[1765833679052,0.001,2940.1,2939.5,3.40184691]
[1765833679270,1.27350023,2940.1,2939.5,3.40184691]
[1765833679560,0.001,2940.1,2939.6,3.40181756]
[1765833679922,0.001,2940.1,2939.6,3.86531756]
[1765833680317,0.001,2940.1,2939.6,3.40181756]
[1765833680745,0.4855,2940.0,2939.3,3.40217058]
[1765833680919,0.1845,2939.9,2939.3,6.80434116]
[1765833681123,0.001,2940.1,2939.3,8.01397011]
[1765833681355,0.001,2940.1,2939.4,0.4635]
[1765833681724,0.001,2940.1,2940.0,0.4858]
[1765833681948,0.001,2940.1,2940.0,0.9493]